bitfinex-derivatives/quotes_BTCF0:USTF0_20250322
["timestamp","ask_amount","ask_price","bid_price","bid_amount"]
[1742671030441,1e-08,84272.0,84271.0,0.22442076]
[1742671031225,1e-08,84272.0,84271.0,0.64112076]
[1742671032431,0.04570001,84272.0,84271.0,0.64112076]
[1742671041737,0.04570001,84272.0,84271.0,1.00192076]
[1742671054143,0.04570001,84272.0,84271.0,0.64112076]
[1742671054341,0.04570001,84272.0,84271.0,1.00192076]
[1742671061260,0.04570001,84272.0,84271.0,0.64112076]
[1742671061453,0.04638001,84272.0,84271.0,0.64112076]
[1742671073566,0.04570001,84272.0,84271.0,0.64112076]
[1742671073767,0.04638001,84272.0,84271.0,0.64112076]
[1742671076867,0.4202052,84297.0,84271.0,0.64112076]
[1742671076868,0.02533711,84285.0,84279.0,0.1186748]
[1742671077068,0.0593334,84285.0,84279.0,0.4794748]
[1742671077369,0.0139091,84280.0,84279.0,0.3614]
[1742671077564,0.23751537,84280.0,84279.0,0.4614]
[1742671077768,0.11952197,84280.0,84279.0,0.4614]
[1742671077972,0.23819537,84280.0,84279.0,0.4654]
[1742671078483,0.23819537,84280.0,84279.0,0.1046]
[1742671078867,0.23819537,84280.0,84279.0,0.0046]
[1742671079061,0.23819537,84280.0,84279.0,0.008]
[1742671079963,0.30114387,84280.0,84279.0,0.008]
[1742671080666,0.30114387,84280.0,84279.0,0.1062]
[1742671081661,0.30114387,84280.0,84279.0,0.1056]
[1742671081862,0.35174387,84280.0,84279.0,0.008]
[1742671083366,0.46438387,84280.0,84279.0,0.008]
[1742671084967,0.46438387,84280.0,84279.0,0.0581]
[1742671093982,0.49122603,84280.0,84279.0,0.0581]
[1742671094579,0.46438387,84280.0,84279.0,0.0581]
[1742671097387,0.4903063,84280.0,84279.0,0.0581]
[1742671097589,0.51714846,84280.0,84279.0,0.0581]
[1742671097889,0.49122603,84280.0,84279.0,0.0581]
[1742671098081,0.46438387,84280.0,84279.0,0.0581]
[1742671098593,0.49122603,84280.0,84279.0,0.0581]
[1742671099393,0.46438387,84280.0,84279.0,0.0581]
[1742671115899,0.49068394,84280.0,84279.0,0.0581]
[1742671116106,0.5175261,84280.0,84279.0,0.0581]
[1742671126902,0.5175261,84280.0,84279.0,0.0551]
[1742671127109,0.5175261,84280.0,84279.0,0.0521]
[1742671142718,0.49068394,84280.0,84279.0,0.0521]
[1742671142922,0.46438387,84280.0,84279.0,0.0521]
[1742671143121,0.49122603,84280.0,84279.0,0.0521]
[1742671143417,0.5175261,84280.0,84279.0,0.0521]
[1742671143616,0.49068394,84280.0,84279.0,0.0521]
[1742671144023,0.49122603,84280.0,84279.0,0.0521]
[1742671144411,0.5175261,84280.0,84279.0,0.0521]
[1742671152518,0.5175261,84280.0,84279.0,0.0527]
[1742671152919,0.5175261,84280.0,84279.0,0.0521]
[1742671153121,0.49122603,84280.0,84279.0,0.0527]
[1742671153321,0.46438387,84280.0,84279.0,0.0527]
[1742671155018,0.44062603,84280.0,84279.0,0.0527]
[1742671155221,0.24611047,84280.0,84279.0,0.1713748]
[1742671155426,0.23216197,84280.0,84279.0,0.1713748]
[1742671155822,0.11952197,84280.0,84279.0,0.2174748]
[1742671156036,0.11884197,84280.0,84279.0,0.2174748]
[1742671156329,0.36088,84292.0,84286.0,0.0593321]
[1742671156533,0.36148,84292.0,84287.0,0.2606636]
[1742671156732,0.11244,84291.0,84288.0,0.1186616]
[1742671156936,0.11244,84291.0,84288.0,0.1192616]
[1742671157240,0.35043081,84291.0,84289.0,0.0924]
[1742671157435,0.35043081,84291.0,84289.0,0.09308]
[1742671157626,0.23177281,84291.0,84289.0,0.2117401]
[1742671157829,0.23177281,84291.0,84290.0,0.1186593]
[1742671158137,0.23177281,84291.0,84290.0,0.00068]
[1742671158333,0.35143071,84291.0,84290.0,0.10018]
[1742671158534,0.39973071,84291.0,84290.0,0.10018]
[1742671158732,0.28107281,84291.0,84290.0,0.10018]
[1742671158928,0.28007281,84291.0,84290.0,0.10018]
[1742671159835,0.23277281,84291.0,84290.0,0.2188393]
[1742671160038,0.23177281,84291.0,84290.0,0.10118]
[1742671160237,0.23177281,84291.0,84290.0,0.2198393]
[1742671160438,0.23177281,84291.0,84290.0,0.10118]
[1742671161040,0.23177281,84291.0,84290.0,0.10218]
[1742671161238,0.23177281,84291.0,84290.0,0.2208393]
[1742671161439,0.23177281,84291.0,84290.0,0.10218]
[1742671162930,0.35043071,84291.0,84290.0,0.10218]
[1742671163731,0.35043071,84291.0,84290.0,0.1015]
[1742671163938,0.39733071,84291.0,84290.0,0.1015]
[1742671164138,0.39733071,84291.0,84290.0,0.1021]
[1742671164843,0.39733071,84291.0,84290.0,0.1015]
[1742671165032,0.44513071,84291.0,84290.0,0.1015]
[1742671167745,0.44513071,84291.0,84290.0,0.1021]
[1742671168045,0.44513071,84291.0,84290.0,0.1015]
[1742671168246,0.44513071,84291.0,84290.0,0.1005]
[1742671168935,0.44513071,84291.0,84290.0,0.10118]
[1742671169336,0.44513071,84291.0,84290.0,0.1005]
[1742671169844,0.44513071,84291.0,84290.0,0.1015]
[1742671170247,0.44513071,84291.0,84290.0,0.1005]
[1742671170449,0.44513071,84291.0,84290.0,0.10218]
[1742671171139,0.44513071,84291.0,84290.0,0.1015]
[1742671171445,0.44513071,84291.0,84290.0,0.10218]
[1742671172343,0.44513071,84291.0,84290.0,0.1015]
[1742671172648,0.44513071,84291.0,84290.0,0.1021]
[1742671173048,0.44513071,84291.0,84290.0,0.1015]
[1742671173348,0.44513071,84291.0,84290.0,0.1021]
[1742671173547,0.44513071,84291.0,84290.0,0.1015]
[1742671173847,0.44513071,84291.0,84290.0,0.10218]
[1742671175058,0.44513071,84291.0,84290.0,0.1015]
[1742671175943,0.44513071,84291.0,84290.0,0.1021]
[1742671176144,0.44513071,84291.0,84290.0,0.1015]
[1742671176444,0.44513071,84291.0,84290.0,0.1021]
[1742671177047,0.44513071,84291.0,84290.0,0.1015]
[1742671177246,0.44513071,84291.0,84290.0,0.10218]
[1742671178945,0.44513071,84291.0,84290.0,0.1015]
[1742671179148,0.44513071,84291.0,84290.0,0.1021]
[1742671179344,0.44513071,84291.0,84290.0,0.1015]
[1742671179550,0.44513071,84291.0,84290.0,0.10218]
[1742671179755,0.44513071,84291.0,84290.0,0.1015]
[1742671180048,0.44513071,84291.0,84290.0,0.10218]
[1742671180247,0.44513071,84291.0,84290.0,0.1015]
[1742671181447,0.44513071,84291.0,84290.0,0.1021]
[1742671181649,0.44513071,84291.0,84290.0,0.1015]
[1742671183250,0.44513071,84291.0,84290.0,0.1021]
[1742671183451,0.44513071,84291.0,84290.0,0.1015]
[1742671183853,0.47025184,84291.0,84290.0,0.1015]
[1742671184158,0.49640898,84291.0,84290.0,0.1015]
[1742671185152,0.49640898,84291.0,84290.0,0.1021]
[1742671185358,0.49640898,84291.0,84290.0,0.1015]
[1742671186843,0.49640898,84291.0,84290.0,0.10214]
[1742671187046,0.49640898,84291.0,84290.0,0.1015]
[1742671187456,0.49640898,84291.0,84290.0,0.1021]
[1742671187660,0.49640898,84291.0,84290.0,0.1015]
[1742671190159,0.47128785,84291.0,84290.0,0.1015]
[1742671190358,0.44513071,84291.0,84290.0,0.1015]
[1742671198267,0.47044367,84291.0,84290.0,0.1015]
[1742671198467,0.49660081,84291.0,84290.0,0.1015]
[1742671199960,0.83124367,84291.0,84290.0,0.1015]
[1742671200568,0.85740081,84291.0,84290.0,0.1015]
[1742671205271,0.83208785,84291.0,84290.0,0.1015]
[1742671205467,0.80593071,84291.0,84290.0,0.1015]
[1742671205872,0.83208785,84291.0,84290.0,0.1015]
[1742671209574,0.85735894,84291.0,84290.0,0.1015]
[1742671230380,0.83208785,84291.0,84290.0,0.1015]
[1742671230584,0.80593071,84291.0,84290.0,0.1015]
[1742671231282,0.83208785,84291.0,84290.0,0.1015]
[1742671231689,0.80593071,84291.0,84290.0,0.1015]
[1742671233293,0.83140079,84291.0,84290.0,0.1015]
[1742671233489,0.85755793,84291.0,84290.0,0.1015]
[1742671234794,0.49675793,84291.0,84290.0,0.1015]
[1742671234987,0.83140079,84291.0,84290.0,0.1015]
[1742671235383,0.85755793,84291.0,84290.0,0.1015]
[1742671236388,0.85755793,84291.0,84290.0,0.1021]
[1742671237489,0.85755793,84291.0,84290.0,0.1015]
[1742671238090,0.85755793,84291.0,84290.0,0.1021]
[1742671238287,0.85755793,84291.0,84290.0,0.1015]
[1742671238695,0.85755793,84291.0,84290.0,0.1021]
[1742671239300,0.49675793,84291.0,84290.0,0.1021]
[1742671239503,0.83140079,84291.0,84290.0,0.1021]
[1742671239890,0.85755793,84291.0,84290.0,0.1021]
[1742671240295,0.85755793,84291.0,84290.0,0.1015]
[1742671240500,0.83140079,84291.0,84290.0,0.1015]
[1742671241205,0.80593071,84291.0,84290.0,0.1015]
[1742671241392,0.68727281,84291.0,84290.0,0.1015]
[1742671241587,0.80593071,84291.0,84290.0,0.1021]
[1742671241792,0.80593071,84291.0,84290.0,0.1015]
[1742671243202,0.75813071,84291.0,84290.0,0.1021]
[1742671243394,0.75813071,84291.0,84290.0,0.1015]
[1742671244100,0.75813071,84291.0,84290.0,0.1021]
[1742671244995,0.75813071,84291.0,84290.0,0.1015]
[1742671246608,0.78346778,84291.0,84290.0,0.1015]
[1742671246795,0.85609407,84291.0,84290.0,0.1015]
[1742671251204,0.49529407,84291.0,84290.0,0.1015]
[1742671251403,0.82956778,84291.0,84290.0,0.1015]
[1742671251604,0.80423071,84291.0,84290.0,0.1015]
[1742671251804,0.830757,84291.0,84290.0,0.1015]
[1742671252211,0.85609407,84291.0,84290.0,0.1015]
[1742671261117,0.85541407,84291.0,84290.0,0.1015]
[1742671261313,0.85609407,84291.0,84290.0,0.1015]
[1742671263521,0.49529407,84291.0,84290.0,0.1015]
[1742671263721,0.82956778,84291.0,84290.0,0.1015]
[1742671264115,0.830757,84291.0,84290.0,0.1015]
[1742671264620,0.1186706,84282.0,84269.0,0.4167]
[1742671264822,0.1186734,84280.0,84279.0,0.0491]
[1742671265118,0.1193534,84280.0,84279.0,0.0497]
[1742671265423,0.33289073,84280.0,84279.0,0.0497]
[1742671265616,0.33289073,84280.0,84279.0,0.0491]
[1742671266015,0.35941702,84280.0,84279.0,0.0531]
[1742671266920,0.35941702,84280.0,84279.0,0.0571]
[1742671275730,0.33289073,84280.0,84279.0,0.0571]
[1742671280926,0.33289073,84280.0,84279.0,0.1054]
[1742671287531,0.1186791,84276.0,84275.0,8e-05]
[1742671287717,0.1193591,84276.0,84275.0,0.00072]
[1742671287922,0.2161591,84276.0,84275.0,8e-05]
[1742671288331,0.33481191,84276.0,84275.0,8e-05]
[1742671288532,0.0593403,84275.0,84271.0,0.00065256]
[1742671288829,0.4794847,84272.0,84271.0,0.00125256]
[1742671289033,0.4801647,84272.0,84271.0,0.00065256]
[1742671289233,0.59882314,84272.0,84271.0,0.00065256]
[1742671289621,0.66218455,84272.0,84271.0,0.00065256]
[1742671290232,0.71288455,84272.0,84271.0,0.00065256]
[1742671291326,0.71288455,84272.0,84271.0,0.00133256]
[1742671291522,0.71288455,84272.0,84271.0,0.00733256]
[1742671291922,0.71288455,84272.0,84271.0,0.05765256]
[1742671292235,0.71288455,84272.0,84271.0,0.05825256]
[1742671292924,0.71388455,84272.0,84271.0,0.05825256]
[1742671296335,0.35308455,84272.0,84271.0,0.05825256]
[1742671296638,0.71388455,84272.0,84271.0,0.05825256]
[1742671297023,0.54449985,84272.0,84271.0,0.05825256]
[1742671297230,0.54449985,84272.0,84271.0,0.17693866]
[1742671297637,0.54449985,84272.0,84271.0,0.22563866]
[1742671300738,0.18369985,84272.0,84271.0,0.22563866]
[1742671300941,0.54449985,84272.0,84271.0,0.22563866]
[1742671303145,0.54449985,84272.0,84271.0,0.10695256]
[1742671303735,0.59449985,84272.0,84271.0,0.10695256]
[1742671304041,0.71318455,84272.0,84271.0,0.10695256]
[1742671304851,0.71318455,84272.0,84271.0,0.10635256]
[1742671305035,0.71318455,84272.0,84271.0,0.10695256]
[1742671305835,0.35238455,84272.0,84271.0,0.10695256]
[1742671306035,0.17103844,84272.0,84271.0,0.22563866]
[1742671306241,0.28343844,84272.0,84271.0,0.22563866]
[1742671307352,0.29655595,84272.0,84271.0,0.22563866]
[1742671314860,0.29655595,84272.0,84271.0,0.10695256]
[1742671315153,0.29655595,84272.0,84271.0,0.22563866]
[1742671315356,0.28343844,84272.0,84271.0,0.22563866]
[1742671316642,0.33393844,84272.0,84271.0,0.22563866]
[1742671320559,0.33393844,84272.0,84271.0,0.10695256]
[1742671320751,0.33393844,84272.0,84271.0,0.22563866]
[1742671321557,0.28343844,84272.0,84271.0,0.22563866]
[1742671321748,0.23273844,84272.0,84271.0,0.22563866]
[1742671322251,0.12033844,84272.0,84271.0,0.22563866]
[1742671322851,0.11965844,84272.0,84271.0,0.22563866]
[1742671323156,0.0475,84277.0,84276.0,0.1186791]
[1742671323360,0.04822,84277.0,84276.0,0.1193991]
[1742671324061,0.16688407,84277.0,84276.0,0.2172991]
[1742671324459,0.16688407,84277.0,84276.0,0.2222991]
[1742671324647,0.16688407,84277.0,84276.0,0.2262991]
[1742671325250,0.16688407,84277.0,84276.0,0.23898713]
[1742671326162,0.21558407,84277.0,84276.0,0.23898713]
[1742671326748,0.16688407,84277.0,84276.0,0.23898713]
[1742671329063,0.16688407,84277.0,84276.0,0.59978713]
[1742671329561,0.04822,84277.0,84276.0,0.59978713]
[1742671329758,0.0475,84277.0,84276.0,0.59978713]
[1742671330555,0.04826,84277.0,84276.0,0.59978713]
[1742671330962,0.0475,84277.0,84276.0,0.59978713]
[1742671331155,0.04818,84277.0,84276.0,0.59978713]
[1742671331359,0.0475,84277.0,84276.0,0.59978713]
[1742671334360,0.0475,84277.0,84276.0,0.5870991]
[1742671335661,0.04810001,84277.0,84276.0,0.5870991]
[1742671336063,0.0475,84277.0,84276.0,0.5870991]
[1742671336265,0.04818,84277.0,84276.0,0.5870991]
[1742671337271,0.0475,84277.0,84276.0,0.5870991]
[1742671337671,0.04814,84277.0,84276.0,0.5870991]
[1742671359716,0.09394,84277.0,84276.0,0.5870991]
[1742671359923,0.09394,84277.0,84276.0,0.5850991]
[1742671361212,0.09394,84277.0,84276.0,0.5840991]
[1742671365998,0.2126176,84277.0,84276.0,0.41542]
[1742671366198,0.33127463,84277.0,84276.0,0.4831991]
[1742671366402,0.33127463,84277.0,84276.0,0.00572]
[1742671366791,0.33127463,84277.0,84276.0,0.05372]
[1742671367292,0.33127463,84277.0,84276.0,0.1723991]
[1742671367492,0.33127463,84277.0,84276.0,0.2184991]
[1742671374106,0.33127463,84277.0,84276.0,0.1723991]
[1742671377806,0.33127463,84277.0,84276.0,0.2216991]
[1742671380209,0.21259703,84277.0,84276.0,0.2216991]
[1742671384500,0.21259703,84277.0,84276.0,0.2681991]
[1742671398824,0.02411475,84286.0,84285.0,0.1186664]
[1742671399026,8e-05,84290.0,84289.0,0.1186607]
[1742671399322,8e-05,84290.0,84289.0,0.1195807]
[1742671399626,0.11236,84299.0,84298.0,0.1186481]
[1742671399822,0.11328,84299.0,84298.0,0.1195281]
[1742671400327,0.23190607,84299.0,84298.0,0.1195281]
[1742671400626,0.23190607,84299.0,84298.0,0.2161281]
[1742671401312,0.11954607,84299.0,84298.0,0.2161281]
[1742671401721,0.12254607,84299.0,84298.0,0.2161281]
[1742671402127,0.17314607,84299.0,84298.0,0.2171281]
[1742671403019,0.17014607,84299.0,84298.0,0.2171281]
[1742671403330,0.17014607,84299.0,84298.0,0.2181281]
[1742671404128,0.21654607,84299.0,84298.0,0.2181281]
[1742671411148,0.33519277,84299.0,84298.0,0.09948]
[1742671414425,0.33519277,84299.0,84298.0,0.09848]
[1742671416035,0.33519277,84299.0,84298.0,0.00188]
[1742671416230,0.33519277,84299.0,84298.0,0.001]
[1742671417527,0.1186523,84295.0,84294.0,8e-05]
[1742671417730,0.2316523,84295.0,84294.0,0.00104]
[1742671417938,0.2316523,84295.0,84294.0,8e-05]
[1742671418132,0.3263523,84295.0,84294.0,8e-05]
[1742671418352,0.44497837,84295.0,84294.0,0.00096]
[1742671418562,0.44497837,84295.0,84294.0,8e-05]
[1742671418769,0.44497837,84295.0,84294.0,0.00096]
[1742671419764,0.44497837,84295.0,84294.0,0.00108]
[1742671421654,0.44497837,84295.0,84294.0,0.001]
[1742671423067,0.44497837,84295.0,84294.0,0.0474]
[1742671424971,0.44497837,84295.0,84294.0,0.04836]
[1742671425173,0.44497837,84295.0,84294.0,0.0963]
[1742671425958,0.44497837,84295.0,84294.0,0.09718]
[1742671426258,0.44497837,84295.0,84294.0,0.0963]
[1742671426451,0.44497837,84295.0,84294.0,0.09718]
[1742671429653,0.80577837,84295.0,84294.0,0.09718]
[1742671431338,0.83066254,84295.0,84294.0,0.2158337]
[1742671431538,0.80577837,84295.0,84294.0,0.2158337]
[1742671431738,0.83066254,84295.0,84294.0,0.2158337]
[1742671433939,0.83066254,84295.0,84294.0,0.09718]
[1742671435443,0.83066254,84295.0,84294.0,0.0963]
[1742671435651,0.83066254,84295.0,84294.0,0.09718]
[1742671438552,0.85456273,84295.0,84294.0,0.09718]
[1742671438942,0.85528273,84295.0,84294.0,0.09718]
[1742671439143,0.85528273,84295.0,84294.0,0.2187135]
[1742671439747,0.85528273,84295.0,84294.0,0.1000598]
[1742671440348,0.85528273,84295.0,84294.0,0.0990598]
[1742671441751,0.85528273,84295.0,84294.0,0.2177135]
[1742671442646,0.85528273,84295.0,84294.0,0.0990598]
[1742671443448,0.85456273,84295.0,84294.0,0.0990598]
[1742671443650,0.85456273,84295.0,84294.0,0.09618]
[1742671443956,0.85528273,84295.0,84294.0,0.09618]
[1742671444260,0.85528273,84295.0,84294.0,0.0990598]
[1742671446157,0.83138254,84295.0,84294.0,0.0990598]
[1742671446857,0.83138254,84295.0,84294.0,0.0981798]
[1742671447060,0.83138254,84295.0,84294.0,0.0990598]
[1742671448353,0.83066254,84295.0,84294.0,0.0990598]
[1742671448958,0.83066254,84295.0,84294.0,0.09618]
[1742671449854,0.83138254,84295.0,84294.0,0.09618]
[1742671450055,0.83138254,84295.0,84294.0,0.0990598]
[1742671450551,0.71273024,84295.0,84277.0,0.4167]
[1742671450864,0.1186706,84282.0,84281.0,0.00064]
[1742671451160,0.23159061,84282.0,84281.0,0.00064]
[1742671451555,0.35024061,84282.0,84281.0,0.00064]
[1742671451755,0.44944061,84282.0,84281.0,0.00064]
[1742671452261,0.44944061,84282.0,84281.0,0.00364]
[1742671452753,0.44944061,84282.0,84281.0,0.003]
[1742671452951,0.44944061,84282.0,84281.0,0.007]
[1742671454362,0.059336,84281.0,84255.0,0.36127475]
[1742671454660,0.1186819,84274.0,84269.0,0.051]
[1742671454850,0.23160191,84274.0,84273.0,0.0002579]
[1742671455050,0.35025191,84274.0,84273.0,0.0002579]
[1742671455552,0.45095191,84274.0,84273.0,0.0002579]
[1742671456351,0.45095191,84274.0,84273.0,0.0052579]
[1742671456766,0.81175191,84274.0,84273.0,0.0052579]
[1742671456957,0.81275191,84274.0,84273.0,0.0102579]
[1742671459465,0.82479642,84274.0,84273.0,0.0569579]
[1742671464164,0.46399642,84274.0,84273.0,0.0569579]
[1742671464465,0.82479642,84274.0,84273.0,0.0569579]
[1742671470761,0.82479642,84274.0,84273.0,0.1059579]
[1742671472964,0.8510853,84274.0,84273.0,0.1059579]
[1742671482377,0.4902853,84274.0,84273.0,0.1059579]
[1742671482672,0.82479642,84274.0,84273.0,0.1059579]
[1742671482868,0.8510853,84274.0,84273.0,0.1059579]
[1742671483069,0.87609928,84274.0,84273.0,0.1059579]
[1742671485467,0.87609928,84274.0,84273.0,0.1009579]
[1742671485667,0.87609928,84274.0,84273.0,0.1039579]
[1742671486572,0.87509928,84274.0,84273.0,0.0989579]
[1742671486774,0.87509928,84274.0,84273.0,0.1029579]
[1742671490979,0.87509928,84274.0,84273.0,0.0959579]
[1742671491181,0.8500853,84274.0,84273.0,0.0959579]
[1742671494575,0.87507898,84274.0,84273.0,0.0959579]
[1742671496373,0.51427898,84274.0,84273.0,0.0959579]
[1742671496574,0.8487901,84274.0,84273.0,0.0959579]
[1742671496774,0.51427898,84274.0,84273.0,0.0959579]
[1742671496977,0.8487901,84274.0,84273.0,0.0965579]
[1742671497172,0.87507898,84274.0,84273.0,0.0959579]
[1742671497977,0.8500853,84274.0,84273.0,0.0959579]
[1742671502983,0.87538747,84274.0,84273.0,0.0959579]
[1742671509579,0.87538747,84274.0,84273.0,0.0965579]
[1742671509999,0.87538747,84274.0,84273.0,0.0959579]
[1742671510194,0.87538747,84274.0,84273.0,0.0965979]
[1742671510390,0.87538747,84274.0,84273.0,0.0959579]
[1742671511578,0.87538747,84274.0,84273.0,0.0965579]
[1742671512287,0.18288557,84274.0,84273.0,0.0965579]
[1742671512488,0.26895669,84274.0,84273.0,0.2152412]
[1742671512794,0.36233642,84274.0,84273.0,0.2152412]
[1742671512993,0.36233642,84274.0,84273.0,0.0965579]
[1742671514697,0.36233642,84274.0,84273.0,0.0964779]
[1742671515788,0.24365452,84274.0,84273.0,0.2151612]
[1742671521093,0.24997642,84274.0,84273.0,0.0964779]
[1742671521296,0.24365452,84274.0,84273.0,0.2151612]
[1742671521502,0.36233642,84274.0,84273.0,0.0964779]
[1742671522498,0.24365452,84274.0,84273.0,0.2151612]
[1742671524392,0.24365452,84274.0,84273.0,0.0964779]
[1742671526198,0.36233642,84274.0,84273.0,0.0964779]
[1742671526406,0.24365452,84274.0,84273.0,0.0964779]
[1742671527304,0.29385452,84274.0,84273.0,0.0964779]
[1742671527902,0.41253642,84274.0,84273.0,0.0964779]
[1742671528800,0.34105452,84274.0,84273.0,0.0964779]
[1742671528999,0.45973642,84274.0,84273.0,0.0964779]
[1742671530197,0.34105452,84274.0,84273.0,0.0964779]
[1742671530592,0.45973642,84274.0,84273.0,0.0964779]
[1742671531904,0.34105452,84274.0,84273.0,0.0964779]
[1742671532094,0.29385452,84274.0,84273.0,0.0964779]
[1742671532294,0.41253642,84274.0,84273.0,0.0964779]
[1742671533496,0.30017642,84274.0,84273.0,0.0964779]
[1742671533704,0.13737858,84280.0,84279.0,0.1186748]
[1742671533903,0.13825858,84280.0,84279.0,0.1195548]
[1742671534209,0.11324,84280.0,84279.0,0.1195548]
[1742671534410,0.23190126,84280.0,84279.0,0.1195548]
[1742671534908,0.23190126,84280.0,84279.0,0.2166548]
[1742671535296,0.23290126,84280.0,84279.0,0.2166548]
[1742671536004,0.23190126,84280.0,84279.0,0.2186548]
[1742671536509,0.23390126,84280.0,84279.0,0.2186548]
[1742671537096,0.23190126,84280.0,84279.0,0.2186548]
[1742671537301,0.32870126,84280.0,84279.0,0.2196548]
[1742671537807,0.32870126,84280.0,84279.0,0.2176548]
[1742671537998,0.32870126,84280.0,84279.0,0.2186548]
[1742671538596,0.32870126,84280.0,84279.0,0.2176548]
[1742671539022,0.32870126,84280.0,84279.0,0.2196548]
[1742671539536,0.44737466,84280.0,84279.0,0.2176548]
[1742671540232,0.44737466,84280.0,84279.0,0.09898]
[1742671540433,0.44737466,84280.0,84279.0,0.2176548]
[1742671541645,0.44737466,84280.0,84279.0,0.2166548]
[1742671542520,0.32870126,84280.0,84279.0,0.2166548]
[1742671543128,0.32870126,84280.0,84279.0,0.2176548]
[1742671543637,0.44737466,84280.0,84279.0,0.2176548]
[1742671545840,0.44737466,84280.0,84279.0,0.09898]
[1742671546043,0.44737466,84280.0,84279.0,0.2176548]
[1742671546230,0.44737466,84280.0,84279.0,0.05218]
[1742671546628,0.44737466,84280.0,84279.0,0.00188]
[1742671548704,0.44737466,84280.0,84279.0,0.05268]
[1742671548904,0.44737466,84280.0,84279.0,0.05168]
[1742671549104,0.44737466,84280.0,84279.0,0.05268]
[1742671549513,0.44937466,84280.0,84279.0,0.05268]
[1742671550213,0.44837466,84280.0,84279.0,0.05268]
[1742671550808,0.44837466,84280.0,84279.0,0.05168]
[1742671550809,0.44937466,84280.0,84279.0,0.05168]
[1742671551014,0.45037466,84280.0,84279.0,0.05168]
[1742671551208,0.45037466,84280.0,84279.0,0.10298]
[1742671551718,0.44937466,84280.0,84279.0,0.10298]
[1742671552718,0.45037466,84280.0,84279.0,0.10298]
[1742671553317,0.44837466,84280.0,84279.0,0.10298]
[1742671553514,0.44937466,84280.0,84279.0,0.10298]
[1742671554016,0.44837466,84280.0,84279.0,0.10298]
[1742671554216,0.44937466,84280.0,84279.0,0.10298]
[1742671554617,0.44837466,84280.0,84279.0,0.10298]
[1742671554822,0.44937466,84280.0,84279.0,0.10298]
[1742671555018,0.44937466,84280.0,84279.0,0.05168]
[1742671557712,0.44837466,84280.0,84279.0,0.05168]
[1742671558211,0.45037466,84280.0,84279.0,0.05168]
[1742671558813,0.44837466,84280.0,84279.0,0.05168]
[1742671559015,0.44937466,84280.0,84279.0,0.05168]
[1742671559925,0.44937466,84280.0,84279.0,0.10198]
[1742671560624,0.44837466,84280.0,84279.0,0.10198]
[1742671560828,0.45037466,84280.0,84279.0,0.10198]
[1742671561419,0.44937466,84280.0,84279.0,0.10198]
[1742671561620,0.45037466,84280.0,84279.0,0.10198]
[1742671562930,0.44837466,84280.0,84279.0,0.10198]
[1742671563131,0.45037466,84280.0,84279.0,0.10198]
[1742671565030,0.44937466,84280.0,84279.0,0.10198]
[1742671565240,0.45037466,84280.0,84279.0,0.10198]
[1742671566039,0.44937466,84280.0,84279.0,0.10198]
[1742671566341,0.45037466,84280.0,84279.0,0.10198]
[1742671567628,0.45037466,84280.0,84279.0,0.1011]
[1742671569244,0.44937466,84280.0,84279.0,0.1011]
[1742671569635,0.44937466,84280.0,84279.0,0.31462982]
[1742671569836,0.44937466,84280.0,84279.0,0.31550982]
[1742671570842,0.44737466,84280.0,84279.0,0.31550982]
[1742671571235,0.44837466,84280.0,84279.0,0.31550982]
[1742671571437,0.44937466,84280.0,84279.0,0.31550982]
[1742671571938,0.44937466,84280.0,84279.0,0.36410982]
[1742671572143,0.44837466,84280.0,84279.0,0.36410982]
[1742671573048,0.44737466,84280.0,84279.0,0.36410982]
[1742671573646,0.44837466,84280.0,84279.0,0.36410982]
[1742671574842,0.44837466,84280.0,84279.0,0.15058]
[1742671577547,0.44737466,84280.0,84279.0,0.15158]
[1742671578443,0.44737466,84280.0,84279.0,0.15258]
[1742671579148,0.44737466,84280.0,84279.0,0.15058]
[1742671579350,0.44837466,84280.0,84279.0,0.15058]
[1742671579846,0.44737466,84280.0,84279.0,0.15058]
[1742671580046,0.45037466,84280.0,84279.0,0.15058]
[1742671581642,0.44937466,84280.0,84279.0,0.15058]
[1742671582947,0.45037466,84280.0,84279.0,0.15058]
[1742671583146,0.44837466,84280.0,84279.0,0.15058]
[1742671584553,0.44737466,84280.0,84279.0,0.15058]
[1742671586054,0.44737466,84280.0,84279.0,0.1497]
[1742671586254,0.44937466,84280.0,84279.0,0.1497]
[1742671586947,0.44937466,84280.0,84279.0,0.15058]
[1742671587650,0.44837466,84280.0,84279.0,0.15058]
[1742671588948,0.44937466,84280.0,84279.0,0.15058]
[1742671589151,0.44837466,84280.0,84279.0,0.15058]
[1742671589456,0.44937466,84280.0,84279.0,0.15058]
[1742671589760,0.44837466,84280.0,84279.0,0.15058]
[1742671590054,0.44937466,84280.0,84279.0,0.15058]
[1742671596158,0.44937466,84280.0,84279.0,0.05168]
[1742671596452,0.1186748,84279.0,84277.0,0.28488772]
[1742671596648,0.1186819,84274.0,84273.0,0.0481779]
[1742671596848,0.5918019,84274.0,84273.0,0.0481779]
[1742671597158,0.71109682,84274.0,84273.0,0.0487779]
[1742671597547,0.85689682,84274.0,84273.0,0.0487779]
[1742671599049,0.85689682,84274.0,84273.0,0.0481779]
[1742671599654,0.85789682,84274.0,84273.0,0.0481779]
[1742671600750,0.85889682,84274.0,84273.0,0.0481779]
[1742671603661,0.49809682,84274.0,84273.0,0.0481779]
[1742671603853,0.85889682,84274.0,84273.0,0.0481779]
[1742671608854,0.49809682,84274.0,84273.0,0.0481779]
[1742671609167,0.85889682,84274.0,84273.0,0.0481779]
[1742671610561,0.49809682,84274.0,84273.0,0.0481779]
[1742671610763,0.85889682,84274.0,84273.0,0.0481779]
[1742671614667,0.49809682,84274.0,84273.0,0.0481779]
[1742671614869,0.85889682,84274.0,84273.0,0.0481779]
[1742671615268,0.49809682,84274.0,84273.0,0.0481779]
[1742671615464,0.85889682,84274.0,84273.0,0.0481779]
[1742671615662,0.49809682,84274.0,84273.0,0.0481779]
[1742671615862,0.49809682,84274.0,84273.0,0.0998779]
[1742671616059,0.85889682,84274.0,84273.0,0.0998779]
[1742671616268,0.49809682,84274.0,84273.0,0.0998779]
[1742671616564,0.85889682,84274.0,84273.0,0.0998779]
[1742671617065,0.88331685,84274.0,84273.0,0.0998779]
[1742671617959,0.49809682,84274.0,84273.0,0.0998779]
[1742671618362,0.85889682,84274.0,84273.0,0.0998779]
[1742671618663,0.88282937,84274.0,84273.0,0.0998779]
[1742671618955,0.90724584,84274.0,84273.0,0.0998779]
[1742671619760,0.85754584,84274.0,84273.0,0.0998779]
[1742671619965,0.83312937,84274.0,84273.0,0.0998779]
[1742671622861,0.47232937,84274.0,84273.0,0.0998779]
[1742671623061,0.83312937,84274.0,84273.0,0.0998779]